fUSD/lending_fUSD_20260506
["ID","MTS","AMOUNT","RATE_DAILY","PERIOD"]
[421718954,1778058653000,-300.0,0.00038238,2]
[421718959,1778058653000,-300.0,0.00038238,2]
[421718965,1778058653000,-300.0,0.00038238,2]
[421718961,1778058653000,-327.24367179,0.00038238,2]
[421718960,1778058653000,-491.85958444,0.00038238,2]
[421718962,1778058653000,-300.0,0.00038238,2]
[421718967,1778058653000,-1065.13491717,0.00038238,2]
[421718969,1778058653000,-309.13065885,0.00038238,2]
[421718915,1778058653000,-491.85958444,0.00038238,2]
[421718966,1778058653000,-526.86051061,0.00038238,2]
[421718942,1778058653000,-564.36664977,0.00038238,2]
[421718968,1778058653000,-891.9241332,0.00038238,2]
[421718933,1778058653000,-300.0,0.00038238,2]
[421718910,1778058653000,-1092.83356842,0.00038238,2]
[421718911,1778058653000,-300.0,0.00038238,2]
[421718908,1778058653000,-300.0,0.00038238,2]
[421718907,1778058653000,-300.0,0.00038238,2]
[421718909,1778058653000,-350.10858405,0.00038238,2]
[421718918,1778058653000,-300.0,0.00038238,2]
[421718919,1778058653000,-603.45144378,0.00038238,2]
[421718941,1778058653000,-310.3725982,0.00038238,2]
[421718920,1778058653000,-300.0,0.00038238,2]
[421718921,1778058653000,-526.86051061,0.00038238,2]
[421718927,1778058653000,-301.2859328,0.00038238,2]
[421718928,1778058653000,-300.0,0.00038238,2]
[421718922,1778058653000,-1065.13491717,0.00038238,2]
[421718929,1778058653000,-300.06118393,0.00038238,2]
[421718924,1778058653000,-309.13065885,0.00038238,2]
[421718936,1778058653000,-343.40295571,0.00038238,2]
[421718923,1778058653000,-891.9241332,0.00038238,2]
[421718932,1778058653000,-852.7601399,0.00038238,2]
[421718934,1778058653000,-1793.38851355,0.00038238,2]
[421718940,1778058653000,-862.96230178,0.00038238,2]
[421718938,1778058653000,-1145.24599896,0.00038238,2]
[421718935,1778058653000,-300.0,0.00038238,2]
[421718939,1778058653000,-309.07064608,0.00038238,2]
[421718937,1778058653000,-300.0,0.00038238,2]
[421718931,1778058653000,-300.0,0.00038238,2]
[421718925,1778058653000,-724.83131769,0.00038238,2]
[421718926,1778058653000,-300.0,0.00038238,2]
[421718930,1778058653000,-300.0,0.00038238,2]
[421719013,1778058654000,-724.83131769,0.00038238,2]
[421719010,1778058654000,-1065.13491717,0.00038238,2]
[421719015,1778058654000,-300.0,0.00038238,2]
[421719007,1778058654000,-603.45144378,0.00038238,2]
[421719014,1778058654000,-301.2859328,0.00038238,2]
[421718999,1778058654000,-1092.83356842,0.00038238,2]
[421719005,1778058654000,-300.0,0.00038238,2]
[421719001,1778058654000,-300.0,0.00038238,2]
[421719002,1778058654000,-300.0,0.00038238,2]
[421718998,1778058654000,-300.0,0.00038238,2]
[421719006,1778058654000,-300.0,0.00038238,2]
[421719012,1778058654000,-309.13065885,0.00038238,2]
[421719025,1778058654000,-1145.24599896,0.00038238,2]
[421719009,1778058654000,-526.86051061,0.00038238,2]
[421719011,1778058654000,-891.9241332,0.00038238,2]
[421719017,1778058654000,-300.0,0.00038238,2]
[421719024,1778058654000,-300.0,0.00038238,2]
[421719023,1778058654000,-343.40295571,0.00038238,2]
[421719016,1778058654000,-300.06118393,0.00038238,2]
[421719018,1778058654000,-300.0,0.00038238,2]
[421719019,1778058654000,-852.7601399,0.00038238,2]
[421719021,1778058654000,-1793.38851355,0.00038238,2]
[421719020,1778058654000,-300.0,0.00038238,2]
[421719022,1778058654000,-300.0,0.00038238,2]
[421719000,1778058654000,-300.0,0.00038238,2]
[421719008,1778058654000,-300.0,0.00038238,2]
[421719003,1778058654000,-300.0,0.00038238,2]
[421718981,1778058654000,-343.40295571,0.00038238,2]
[421718997,1778058654000,-300.0,0.00038238,2]
[421719027,1778058654000,-862.96230178,0.00038238,2]
[421718973,1778058654000,-300.0,0.00038238,2]
[421718979,1778058654000,-1793.38851355,0.00038238,2]
[421718970,1778058654000,-724.83131769,0.00038238,2]
[421718978,1778058654000,-300.0,0.00038238,2]
[421718974,1778058654000,-300.06118393,0.00038238,2]
[421718972,1778058654000,-301.2859328,0.00038238,2]
[421718971,1778058654000,-427.44626578,0.00038238,2]
[421718975,1778058654000,-300.0,0.00038238,2]
[421718976,1778058654000,-300.0,0.00038238,2]
[421718980,1778058654000,-300.0,0.00038238,2]
[421718983,1778058654000,-1145.24599896,0.00038238,2]
[421719004,1778058654000,-491.85958444,0.00038238,2]
[421718982,1778058654000,-300.0,0.00038238,2]
[421718991,1778058654000,-300.0,0.00038238,2]
[421718986,1778058654000,-310.3725982,0.00038238,2]
[421718992,1778058654000,-300.0,0.00038238,2]
[421718987,1778058654000,-463.08064867,0.00038238,2]
[421718990,1778058654000,-451.13853711,0.00038238,2]
[421718989,1778058654000,-481.18706949,0.00038238,2]
[421718988,1778058654000,-300.0,0.00038238,2]
[421718985,1778058654000,-862.96230178,0.00038238,2]
[421718994,1778058654000,-565.04867292,0.00038238,2]
[421718993,1778058654000,-300.0,0.00038238,2]
[421718996,1778058654000,-309.32134718,0.00038238,2]
[421718995,1778058654000,-483.27319916,0.00038238,2]
[421718984,1778058654000,-309.07064608,0.00038238,2]
[421719026,1778058654000,-309.07064608,0.00038238,2]
[421718977,1778058654000,-852.7601399,0.00038238,2]
[421719034,1778058654000,-300.0,0.00038238,2]
[421719055,1778058654000,-301.2859328,0.00038238,2]
[421719057,1778058654000,-300.06118393,0.00038238,2]
[421719062,1778058654000,-300.0,0.00038238,2]
[421719064,1778058654000,-300.0,0.00038238,2]
[421719067,1778058654000,-862.96230178,0.00038238,2]
[421719066,1778058654000,-309.07064608,0.00038238,2]
[421719063,1778058654000,-343.40295571,0.00038238,2]
[421719073,1778058654000,-300.0,0.00038238,2]
[421719065,1778058654000,-1145.24599896,0.00038238,2]
[421719069,1778058654000,-463.08064867,0.00038238,2]
[421719068,1778058654000,-310.3725982,0.00038238,2]
[421719070,1778058654000,-300.0,0.00038238,2]
[421719054,1778058654000,-724.83131769,0.00038238,2]
[421719071,1778058654000,-481.18706949,0.00038238,2]
[421719074,1778058654000,-300.0,0.00038238,2]
[421719085,1778058654000,-300.0,0.00038238,2]
[421719075,1778058654000,-300.0,0.00038238,2]
[421719084,1778058654000,-491.85958444,0.00038238,2]
[421719076,1778058654000,-483.27319916,0.00038238,2]
[421719086,1778058654000,-603.45144378,0.00038238,2]
[421719080,1778058654000,-1092.83356842,0.00038238,2]
[421719082,1778058654000,-561.70948187,0.00038238,2]
[421719083,1778058654000,-300.0,0.00038238,2]
[421719078,1778058654000,-314.68486882,0.00038238,2]
[421719081,1778058654000,-300.0,0.00038238,2]
[421719077,1778058654000,-309.32134718,0.00038238,2]
[421719072,1778058654000,-451.13853711,0.00038238,2]
[421719058,1778058654000,-300.0,0.00038238,2]
[421719079,1778058654000,-300.0,0.00038238,2]
[421719051,1778058654000,-1065.13491717,0.00038238,2]
[421719056,1778058654000,-300.0,0.00038238,2]
[421719037,1778058654000,-309.32134718,0.00038238,2]
[421719032,1778058654000,-451.13853711,0.00038238,2]
[421719035,1778058654000,-300.0,0.00038238,2]
[421719036,1778058654000,-483.27319916,0.00038238,2]
[421719028,1778058654000,-310.3725982,0.00038238,2]
[421719033,1778058654000,-300.0,0.00038238,2]
[421719031,1778058654000,-481.18706949,0.00038238,2]
[421719030,1778058654000,-300.0,0.00038238,2]
[421719039,1778058654000,-300.0,0.00038238,2]
[421719042,1778058654000,-300.0,0.00038238,2]
[421719040,1778058654000,-1092.83356842,0.00038238,2]
[421719038,1778058654000,-300.0,0.00038238,2]
[421719029,1778058654000,-463.08064867,0.00038238,2]
[421719043,1778058654000,-393.77205544,0.00038238,2]
[421719041,1778058654000,-300.0,0.00038238,2]
[421719050,1778058654000,-526.86051061,0.00038238,2]
[421719060,1778058654000,-852.7601399,0.00038238,2]
[421719059,1778058654000,-300.0,0.00038238,2]
[421719048,1778058654000,-603.45144378,0.00038238,2]
[421719053,1778058654000,-309.13065885,0.00038238,2]
[421719049,1778058654000,-300.0,0.00038238,2]
[421719061,1778058654000,-1793.38851355,0.00038238,2]
[421719046,1778058654000,-300.0,0.00038238,2]
[421719044,1778058654000,-300.0,0.00038238,2]
[421719045,1778058654000,-491.85958444,0.00038238,2]
[421719047,1778058654000,-521.24920061,0.00038238,2]
[421719052,1778058654000,-891.9241332,0.00038238,2]
[421719134,1778058655000,-210.1366791,0.00038242,120]
[421719120,1778058655000,-491.85958444,0.00038238,2]
[421719121,1778058655000,-300.0,0.00038238,2]
[421719116,1778058655000,-300.0,0.00038238,2]
[421719117,1778058655000,-1092.83356842,0.00038238,2]
[421719114,1778058655000,-483.27319916,0.00038238,2]
[421719118,1778058655000,-300.0,0.00038238,2]
[421719115,1778058655000,-309.32134718,0.00038238,2]
[421719122,1778058655000,-603.45144378,0.00038238,2]
[421719132,1778058655000,-151.0,0.00038238,7]
[421719126,1778058655000,-891.9241332,0.00038238,2]
[421719123,1778058655000,-300.0,0.00038238,2]
[421719124,1778058655000,-526.86051061,0.00038238,2]
[421719130,1778058655000,-300.0,0.00038238,2]
[421719127,1778058655000,-309.13065885,0.00038238,2]
[421719119,1778058655000,-300.0,0.00038238,2]
[421719131,1778058655000,-300.06118393,0.00038238,2]
[421719128,1778058655000,-724.83131769,0.00038238,2]
[421719129,1778058655000,-301.2859328,0.00038238,2]
[421719125,1778058655000,-1065.13491717,0.00038238,2]
[421719135,1778058655000,-283.6996602,0.00038242,120]
[421719136,1778058655000,-331.5694761,0.00038242,120]
[421719133,1778058655000,-186.7459471,0.00038242,120]
[421719110,1778058655000,-451.13853711,0.00038238,2]
[421719107,1778058655000,-463.08064867,0.00038238,2]
[421719111,1778058655000,-300.0,0.00038238,2]
[421719142,1778058655000,-151.0,0.00038276,7]
[421719087,1778058655000,-300.0,0.00038238,2]
[421719097,1778058655000,-300.0,0.00038238,2]
[421719089,1778058655000,-1065.13491717,0.00038238,2]
[421719095,1778058655000,-300.06118393,0.00038238,2]
[421719090,1778058655000,-891.9241332,0.00038238,2]
[421719091,1778058655000,-309.13065885,0.00038238,2]
[421719096,1778058655000,-300.0,0.00038238,2]
[421719093,1778058655000,-301.2859328,0.00038238,2]
[421719088,1778058655000,-526.86051061,0.00038238,2]
[421719092,1778058655000,-724.83131769,0.00038238,2]
[421719094,1778058655000,-300.0,0.00038238,2]
[421719100,1778058655000,-372.93716444,0.00038238,2]
[421719099,1778058655000,-1793.38851355,0.00038238,2]
[421719109,1778058655000,-481.18706949,0.00038238,2]
[421719103,1778058655000,-1145.24599896,0.00038238,2]
[421719102,1778058655000,-300.0,0.00038238,2]
[421719101,1778058655000,-343.40295571,0.00038238,2]
[421719105,1778058655000,-862.96230178,0.00038238,2]
[421719108,1778058655000,-300.0,0.00038238,2]
[421719106,1778058655000,-310.3725982,0.00038238,2]
[421719104,1778058655000,-309.07064608,0.00038238,2]
[421719112,1778058655000,-300.0,0.00038238,2]
[421719113,1778058655000,-300.0,0.00038238,2]
[421719098,1778058655000,-852.7601399,0.00038238,2]
[421719143,1778058655000,-151.0,0.00038276,7]
[421719148,1778058655000,-246.0,0.00038356,2]
[421719170,1778058655000,-1208.0,0.00038834,2]
[421719171,1778058655000,-1268.0,0.00038858,2]
[421719166,1778058655000,-151.0,0.00038789,30]
[421719169,1778058655000,-2017.4305,0.00038831,2]
[421719172,1778058655000,-150.0,0.00038858,2]
[421719173,1778058655000,-1221.0,0.00038858,2]
[421719175,1778058655000,-2000.0,0.000389,7]
[421719174,1778058655000,-150.0,0.00038893,7]
[421719176,1778058655000,-262.686372,0.000389,30]
[421719177,1778058655000,-262.686372,0.000389,30]
[421719178,1778058655000,-262.686372,0.000389,30]
[421719180,1778058655000,-617.196269,0.000389,30]
[421719181,1778058655000,-617.196269,0.000389,30]
[421719184,1778058655000,-151.899652,0.000389,30]
[421719182,1778058655000,-617.196269,0.000389,30]
[421719183,1778058655000,-617.196269,0.000389,30]
[421719185,1778058655000,-500.16742932,0.00038904,5]
[421719186,1778058655000,-150.0,0.00038918,2]
[421719187,1778058655000,-150.0,0.00038918,2]
[421719188,1778058655000,-173.908,0.00038918,2]
[421719189,1778058655000,-160.97,0.00038918,2]
[421719190,1778058655000,-241.722,0.00038918,2]
[421719139,1778058655000,-1448.55,0.00038276,60]
[421719167,1778058655000,-150.0,0.00038802,7]
[421719168,1778058655000,-150.0,0.00038827,7]
[421719179,1778058655000,-262.686372,0.000389,30]
[421719162,1778058655000,-253.6098031,0.00038614,2]
[421719141,1778058655000,-151.0,0.00038276,7]
[421719165,1778058655000,-600.44,0.00038788,7]
[421719138,1778058655000,-271.5036769,0.00038242,120]
[421719137,1778058655000,-254.522855,0.00038242,120]
[421719147,1778058655000,-159.64,0.00038356,30]
[421719144,1778058655000,-150.0,0.00038295,7]
[421719145,1778058655000,-222.89815868,0.00038331,2]
[421719140,1778058655000,-151.0,0.00038276,7]
[421719150,1778058655000,-350.0,0.00038392,2]
[421719161,1778058655000,-150.0,0.00038614,2]
[421719160,1778058655000,-2017.4305,0.00038591,2]
[421719151,1778058655000,-150.0,0.00038395,7]
[421719146,1778058655000,-2017.4305,0.00038351,2]
[421719149,1778058655000,-152.0,0.00038389,15]
[421719164,1778058655000,-501.0,0.00038658,14]
[421719159,1778058655000,-150.0,0.00038561,7]
[421719157,1778058655000,-925.0,0.00038547,2]
[421719156,1778058655000,-624.0,0.00038547,2]
[421719155,1778058655000,-209.78524876,0.00038546,2]
[421719163,1778058655000,-150.0,0.00038644,7]
[421719152,1778058655000,-310.0,0.00038415,51]
[421719158,1778058655000,-150.0,0.00038561,7]
[421719154,1778058655000,-150.0,0.000385,120]
[421719153,1778058655000,-150.0,0.0003844,7]
[421719229,1778058656000,-4458.97671753,0.0003938,120]
[421719225,1778058656000,-2017.4305,0.0003931,2]
[421719221,1778058656000,-310.0,0.00039242,58]
[421719219,1778058656000,-150.0,0.00039165,7]
[421719223,1778058656000,-4660.2715854,0.00039288,120]
[421719226,1778058656000,-5568.68896314,0.00039315,120]
[421719222,1778058656000,-152.0,0.00039245,16]
[421719220,1778058656000,-503.30221283,0.00039229,120]
[421719235,1778058656000,-642.08867388,0.0003945,7]
[421719228,1778058656000,-150.0,0.00039359,7]
[421719227,1778058656000,-501.0,0.00039336,15]
[421719236,1778058656000,-2023.0,0.000395,7]
[421719238,1778058656000,-4458.97671753,0.00039523,120]
[421719232,1778058656000,-2570.72580241,0.000394,120]
[421719233,1778058656000,-880.36535272,0.00039402,7]
[421719237,1778058656000,-968.80710971,0.00039521,7]
[421719231,1778058656000,-3701.02202192,0.000394,120]
[421719234,1778058656000,-615.06401391,0.00039427,120]
[421719239,1778058656000,-3928.8293396,0.00039524,120]
[421719241,1778058656000,-190.12196258,0.00039532,8]
[421719240,1778058656000,-150.0,0.00039528,7]
[421719246,1778058656000,-150.0,0.00039579,2]
[421719244,1778058656000,-2017.4305,0.0003955,2]
[421719245,1778058656000,-4458.97671753,0.00039558,120]
[421719224,1778058656000,-151.0,0.00039297,14]
[421719230,1778058656000,-150.0,0.00039392,7]
[421719217,1778058656000,-150.0,0.00039142,7]
[421719191,1778058656000,-194.277,0.00038918,2]
[421719215,1778058656000,-3625.0,0.00039102,2]
[421719242,1778058656000,-2628.9836952,0.00039543,120]
[421719192,1778058656000,-250.0,0.00038918,2]
[421719193,1778058656000,-243.041,0.00038918,2]
[421719198,1778058656000,-4660.2715854,0.00038942,120]
[421719199,1778058656000,-4458.97671753,0.00038952,120]
[421719200,1778058656000,-1140.2017479,0.00039043,2]
[421719196,1778058656000,-3536.0,0.00038918,2]
[421719195,1778058656000,-1352.0,0.00038918,2]
[421719197,1778058656000,-188.65586522,0.00038936,2]
[421719201,1778058656000,-2017.4305,0.0003907,2]
[421719194,1778058656000,-183.0,0.00038918,2]
[421719202,1778058656000,-500.0,0.00039089,120]
[421719203,1778058656000,-150.0,0.00039093,7]
[421719206,1778058656000,-642.905357,0.00039093,7]
[421719205,1778058656000,-642.905357,0.00039093,7]
[421719207,1778058656000,-642.905357,0.00039093,7]
[421719210,1778058656000,-254.415554,0.00039093,30]
[421719211,1778058656000,-254.415554,0.00039093,30]
[421719214,1778058656000,-6043.0,0.00039102,2]
[421719213,1778058656000,-123246.2766197,0.00039093,2]
[421719209,1778058656000,-254.415554,0.00039093,30]
[421719208,1778058656000,-151.0,0.00039093,30]
[421719212,1778058656000,-254.415554,0.00039093,30]
[421719204,1778058656000,-642.905357,0.00039093,7]
[421719216,1778058656000,-3701.02202192,0.00039103,120]
[421719218,1778058656000,-3701.02202192,0.00039148,120]
[421719243,1778058656000,-4660.2715854,0.00039546,120]
[421719297,1778058656000,-615.06401391,0.00039636,120]
[421719248,1778058656000,-437.81262664,0.00039622,2]
[421719277,1778058656000,-380.41984111,0.00039631,2]
[421719276,1778058656000,-221.589595,0.0003963,30]
[421719275,1778058656000,-151.0,0.0003963,30]
[421719278,1778058656000,-611574.6422,0.00039632,30]
[421719283,1778058656000,-617.196269,0.00039632,30]
[421719284,1778058656000,-617.196269,0.00039632,30]
[421719285,1778058656000,-617.196269,0.00039632,30]
[421719288,1778058656000,-642.905357,0.00039632,7]
[421719294,1778058656000,-254.415554,0.00039632,30]
[421719286,1778058656000,-617.196275,0.00039632,30]
[421719289,1778058656000,-642.905357,0.00039632,7]
[421719287,1778058656000,-642.905357,0.00039632,7]
[421719290,1778058656000,-642.905359,0.00039632,7]
[421719292,1778058656000,-254.415554,0.00039632,30]
[421719293,1778058656000,-254.415554,0.00039632,30]
[421719296,1778058656000,-2571.43147629,0.00039633,120]
[421719295,1778058656000,-254.415562,0.00039632,30]
[421719302,1778058656000,-1100.0,0.000397,14]
[421719304,1778058656000,-3928.8293396,0.00039709,120]
[421719299,1778058656000,-3928.8293396,0.00039684,120]
[421719298,1778058656000,-150.0,0.00039641,7]
[421719300,1778058656000,-2571.43147629,0.00039697,120]
[421719301,1778058656000,-3100.0,0.000397,14]
[421719303,1778058656000,-1000.0,0.000397,14]
[421719247,1778058656000,-3928.8293396,0.00039621,120]
[421719274,1778058656000,-274.197896,0.0003963,30]
[421719279,1778058656000,-262.686372,0.00039632,30]
[421719291,1778058656000,-151.0,0.00039632,30]
[421719273,1778058656000,-151.0,0.0003963,30]
[421719271,1778058656000,-619.014772,0.0003963,30]
[421719255,1778058656000,-1248.48009278,0.00039627,2]
[421719254,1778058656000,-600.44,0.00039626,7]
[421719250,1778058656000,-150.0,0.00039624,7]
[421719253,1778058656000,-600.44,0.00039626,7]
[421719249,1778058656000,-151.0,0.00039624,14]
[421719252,1778058656000,-600.44,0.00039626,7]
[421719256,1778058656000,-151.0,0.0003963,30]
[421719251,1778058656000,-500.0,0.00039625,2]
[421719259,1778058656000,-153.405141,0.0003963,30]
[421719257,1778058656000,-151.0,0.0003963,30]
[421719260,1778058656000,-302.856741,0.0003963,30]
[421719261,1778058656000,-302.856741,0.0003963,30]
[421719258,1778058656000,-151.0,0.0003963,30]
[421719265,1778058656000,-302.856747,0.0003963,30]
[421719280,1778058656000,-262.686372,0.00039632,30]
[421719262,1778058656000,-164.35212,0.0003963,30]
[421719282,1778058656000,-262.686373,0.00039632,30]
[421719281,1778058656000,-262.686372,0.00039632,30]
[421719266,1778058656000,-164.35212,0.0003963,30]
[421719268,1778058656000,-619.014766,0.0003963,30]
[421719272,1778058656000,-151.0,0.0003963,30]
[421719263,1778058656000,-302.856741,0.0003963,30]
[421719270,1778058656000,-619.014766,0.0003963,30]
[421719264,1778058656000,-164.35212,0.0003963,30]
[421719269,1778058656000,-619.014766,0.0003963,30]
[421719267,1778058656000,-164.352111,0.0003963,30]
[421719324,1778058657000,-158.17183612,0.0003989,7]
[421719322,1778058657000,-150.0,0.0003989,7]
[421719328,1778058657000,-600.0,0.000399,14]
[421719332,1778058657000,-582.76,0.00039908,120]
[421719329,1778058657000,-200.0,0.000399,14]
[421719325,1778058657000,-600.44,0.00039899,7]
[421719326,1778058657000,-200141.71610244,0.000399,120]
[421719335,1778058657000,-310.0,0.00039933,67]
[421719327,1778058657000,-1632.07156104,0.000399,2]
[421719334,1778058657000,-615.06401391,0.00039919,120]
[421719336,1778058657000,-437.81262664,0.0003999,7]
[421719337,1778058657000,-615.06401391,0.00039994,120]
[421719338,1778058657000,-151.0,0.00039997,14]
[421719339,1778058657000,-300.0,0.00039999,10]
[421719340,1778058657000,-300.0,0.00039999,10]
[421719330,1778058657000,-200.0,0.000399,14]
[421719323,1778058657000,-150.0,0.0003989,7]
[421719311,1778058657000,-151.0,0.00039797,14]
[421719320,1778058657000,-161.73486169,0.0003989,7]
[421719344,1778058657000,-300.0,0.00039999,10]
[421719306,1778058657000,-3928.8293396,0.00039742,120]
[421719307,1778058657000,-250.0,0.00039753,65]
[421719305,1778058657000,-600.44,0.00039725,7]
[421719308,1778058657000,-187.16,0.00039764,120]
[421719313,1778058657000,-600.0,0.000398,14]
[421719317,1778058657000,-500.0,0.0003985,30]
[421719333,1778058657000,-4458.97671753,0.00039913,120]
[421719310,1778058657000,-2017.4305,0.0003979,2]
[421719309,1778058657000,-3469.1503231,0.0003977,120]
[421719319,1778058657000,-3928.8293396,0.00039872,120]
[421719318,1778058657000,-2571.43147629,0.00039856,120]
[421719316,1778058657000,-582.76,0.00039808,120]
[421719315,1778058657000,-200.0,0.000398,14]
[421719314,1778058657000,-200.0,0.000398,14]
[421719321,1778058657000,-150.0,0.0003989,7]
[421719312,1778058657000,-1424.95,0.000398,120]
[421719343,1778058657000,-300.0,0.00039999,10]
[421719331,1778058657000,-8104.95109951,0.000399,15]
[421719342,1778058657000,-300.0,0.00039999,10]
[421719366,1778058657000,-928.0,0.00037122,2]
[421719368,1778058657000,-852.7601399,0.00038238,2]
[421719369,1778058657000,-2137.16856206,0.0004,120]
[421719365,1778058657000,-504.00003,0.00027137,2]
[421719367,1778058657000,-300.0,0.00038238,2]
[421719373,1778058657000,-498.85660956,0.0004,120]
[421719372,1778058657000,-19187.90182914,0.0004,120]
[421719364,1778058657000,-154.0,0.00021,2]
[421719371,1778058657000,-1365733.79053917,0.0004,120]
[421719376,1778058657000,-300.0,0.00038238,2]
[421719377,1778058657000,-1694.26209704,0.0004,120]
[421719378,1778058657000,-3937.52570792,0.0004,120]
[421719380,1778058657000,-4449.83331534,0.0004,120]
[421719379,1778058657000,-26459.9897657,0.0004,120]
[421719381,1778058657000,-408.785,0.0004,120]
[421719341,1778058657000,-300.0,0.00039999,10]
[421719374,1778058657000,-4780.3999997,0.0004,120]
[421719370,1778058657000,-1066.05242668,0.0004,120]
[421719375,1778058657000,-398.09187019,0.0004,120]
[421719362,1778058657000,-4157.25,0.0004,120]
[421719346,1778058657000,-666.0,0.00039999,30]
[421719349,1778058657000,-600.44,0.00039999,7]
[421719347,1778058657000,-3646.09057343,0.00039999,120]
[421719356,1778058657000,-600.48775141,0.00039999,7]
[421719348,1778058657000,-600.44,0.00039999,7]
[421719345,1778058657000,-300.0,0.00039999,10]
[421719350,1778058657000,-600.44,0.00039999,7]
[421719351,1778058657000,-600.44,0.00039999,7]
[421719352,1778058657000,-600.44,0.00039999,7]
[421719353,1778058657000,-600.44,0.00039999,7]
[421719355,1778058657000,-600.44,0.00039999,7]
[421719358,1778058657000,-770874.18025876,0.0004,120]
[421719357,1778058657000,-50000.0,0.0004,53]
[421719359,1778058657000,-9582.0,0.0004,120]
[421719360,1778058657000,-4594.32334287,0.0004,120]
[421719361,1778058657000,-1298.5450005,0.0004,120]
[421719354,1778058657000,-600.44,0.00039999,7]
[421719363,1778058657000,-151.0,0.0002,2]
[421719382,1778058658000,152.0,0.00011705,2]
[421719383,1778058662000,4860.28496154,0.00018384,120]
[421719384,1778058677000,152.0,0.00011707,2]
[421719391,1778058912000,1000.0,0.00026704,120]
[421719393,1778059305000,504.387,0.00022,30]
[421719394,1778059309000,4200.0,0.0003,120]
[421719398,1778059310000,4200.0,0.0003,120]
[421719397,1778059310000,4200.0,0.0003,120]
[421719396,1778059310000,4200.0,0.0003,120]
[421719395,1778059310000,4200.0,0.0003,120]
[421719401,1778059312000,4200.0,0.0003,120]
[421719400,1778059312000,4200.0,0.0003,120]
[421719399,1778059312000,4200.0,0.0003,120]
[421719403,1778059313000,4200.0,0.0003,120]
[421719402,1778059313000,4200.0,0.0003,120]
[421719404,1778059499000,170.71,0.00025844,120]
[421719405,1778059500000,170.71,0.00028428,120]
[421719406,1778059521000,152.0,0.00011648,2]
[421719407,1778059618000,189.335256,0.00028788,120]
[421719408,1778059717000,488.064217,0.00026849,120]
[421719409,1778059780000,-500.0,0.0001238,2]
[421719410,1778059780000,-250.0,0.00012405,2]
[421719411,1778059780000,-1278.71467835,0.00012468,2]
[421719413,1778059780000,-371.45850053,0.00012535,2]
[421719414,1778059780000,-157.96,0.00012922,2]
[421719415,1778059780000,-1200.0,0.00013617,2]
[421719417,1778059780000,-250.0,0.00013618,2]
[421719412,1778059780000,-2949.8117,0.0001248,2]
[421719418,1778059780000,-502.86529123,0.00013618,2]
[421719419,1778059780000,-250.0,0.00014,2]
[421719421,1778059780000,-157.96,0.00014537,2]
[421719423,1778059780000,-380.51299993,0.000148,2]
[421719424,1778059780000,-480.0,0.00014979,2]
[421719422,1778059780000,-8504.21,0.00014537,2]
[421719420,1778059780000,-150.99,0.00014355,2]
[421719416,1778059780000,-300.0,0.00013617,2]
[421719425,1778059799000,152.0,0.00011645,2]
[421719442,1778059831000,-1967.24,0.000151,2]
[421719445,1778059831000,-2500.0,0.00015157,2]
[421719443,1778059831000,-307.79330247,0.00015114,2]
[421719444,1778059831000,-250.0,0.00015128,2]
[421719499,1778059832000,-166.66,0.00019959,2]
[421719482,1778059832000,-500.0,0.0001661,2]
[421719484,1778059832000,-201.41984677,0.0001661,2]
[421719481,1778059832000,-605.015601,0.0001661,2]
[421719485,1778059832000,-199.36,0.00016712,2]
[421719476,1778059832000,-457.4,0.00016438,2]